{"text_format":"1","workbook":"xlsx","n_sheets":4,"sheets":["SAISIE","ADMIN","GRAPH","DATA"],"not_rendered":{"charts":0,"images":8,"macros":1,"external_links":0,"defined_names":2,"comments":1,"pivot_tables":0},"unopened":[],"bounds":{"document_bytes":16777216,"sheet_cells":100000,"rows_first":2000,"rows_last":500,"rows_between":2000,"halvings":0,"cell_chars":16384,"cell_head_chars":4096},"cells_cut":0,"cells_raw":0,"read":"whole","date_system":"1900"}

{"sheet":"SAISIE","index":0,"n_rows":35,"n_cols":34,"rows_kept":35,"cut":false,"hidden":false,"merged":[[0,0,0,5]]}
["FEUILLE DE SAISIE DE DONNÉES"]
[null,null,null,null,null,null,null,null,null,null,null,null,null,null,null,null,null,null,null,null,null,null,null,null,null,null,"Chatigny, Karine ",null,"Janvier","Initiale - TC","Cisco DTA & Loi C28 Phase 2",null,null,2014]
["Formateur :",null,null,null,null,null,null,null,null,null,null,null,null,null,null,null,null,null,null,null,null,null,null,null,null,null,"D'Auteuil, François",null,"Février","Initiale - SPE","Extension Réseau Commerciale",null,null,2015]
["Formation :",null,null,null,null,null,null,null,null,null,null,null,null,null,null,null,null,null,null,null,null,null,null,null,null,null,"Girard, Yvan-Daniel ",null,"Mars","P2","Extension Réseau Multi-Site",null,null,2016]
["Type de Formation :",null,null,null,null,null,null,null,null,null,null,null,null,null,null,null,null,null,null,null,null,null,null,null,null,null,"Lafond, Geneviève",null,"Avril","P3","L2VPN",null,null,2017]
["Année :",null,null,null,null,null,null,null,null,null,null,null,null,null,null,null,null,null,null,null,null,null,null,null,null,null,"Martin, François",null,"Mai","E-Learning","LinkedIn - Le Vendeur Virtuel",null,null,2018]
["Mois :",null,null,null,null,null,null,null,null,null,null,null,null,null,null,null,null,null,null,null,null,null,null,null,null,null,"Vanderwerff, Nathaniel",null,"Juin",null,"Salesforce",null,null,2019]
["Nbre Total d'apprenants :",null,null,null,null,null,null,null,null,null,null,null,null,null,null,null,null,null,null,null,null,null,null,null,null,null,"Berthiaume, André",null,"Juillet",null,"Samsung S6",null,null,2020]
["Nbre Total de Sondages complétés :",null,null,null,null,null,null,null,null,null,null,null,null,null,null,null,null,null,null,null,null,null,null,null,null,null,"Autre Formateur 02",null,"Août",null,"SPE - Internet"]
["Nbre de Répétition de la formation :",null,null,null,null,null,null,null,null,null,null,null,null,null,null,null,null,null,null,null,null,null,null,null,null,null,"Autre Formateur 03",null,"Septembre",null,"SPE - Politiques et Procédures"]
[null,null,null,null,null,null,null,null,null,null,null,null,null,null,null,null,null,null,null,null,null,null,null,null,null,null,"Autre Formateur 04",null,"Octobre",null,"SPE - Poursuites d'appels"]
[null,null,"Jamais","Parfois","Souvent","Toujours",null,null,null,null,null,null,null,null,null,null,null,null,null,null,null,null,null,null,null,null,"Autre Formateur 05",null,"Novembre",null,"SPE - Rétention & Processus d'escalade"]
["À propos de la Formation",null,null,null,null,null,null,null,null,null,null,null,null,null,null,null,null,null,null,null,null,null,null,null,null,null,null,null,"Décembre",null,"SPE - Téléphonie"]
[null,"Objectifs clairement énoncés",null,null,null,null,null,null,null,null,null,null,null,null,null,null,null,null,null,null,null,null,null,null,null,null,null,null,null,null,"SPE - Télévision"]
[null,"Contenu clairement énoncé",null,null,null,null,null,null,null,null,null,null,null,null,null,null,null,null,null,null,null,null,null,null,null,null,null,null,null,null,"SPE - TMO - Jour 1"]
[null,"Rythme adéquat",null,null,null,null,null,null,null,null,null,null,null,null,null,null,null,null,null,null,null,null,null,null,null,null,null,null,null,null,"SPE - TMO - Jour 2"]
[null,"Répartition théorie / pratique",null,null,null,null,null,null,null,null,null,null,null,null,null,null,null,null,null,null,null,null,null,null,null,null,null,null,null,null,"TC - Hébergement"]
["À propos de l'Animation",null,null,null,null,null,null,null,null,null,null,null,null,null,null,null,null,null,null,null,null,null,null,null,null,null,null,null,null,null,"TC - Internet"]
[null,"Maitrise du contenu",null,null,null,null,null,null,null,null,null,null,null,null,null,null,null,null,null,null,null,null,null,null,null,null,null,null,null,null,"TC - Outils systèmes"]
[null,"Explications claires",null,null,null,null,null,null,null,null,null,null,null,null,null,null,null,null,null,null,null,null,null,null,null,null,null,null,null,null,"TC - Service Affaire"]
[null,"Suscite l'intérêt",null,null,null,null,null,null,null,null,null,null,null,null,null,null,null,null,null,null,null,null,null,null,null,null,null,null,null,null,"TC - Télédistribution"]
[null,"Consignes pour exercices",null,null,null,null,null,null,null,null,null,null,null,null,null,null,null,null,null,null,null,null,null,null,null,null,null,null,null,null,"TC - TPC"]
[null,"Validation de la compréhension",null,null,null,null,null,null,null,null,null,null,null,null,null,null,null,null,null,null,null,null,null,null,null,null,null,null,null,null,"TM - Cold Call (Phase 2)"]
["Materiel et Activité d'Apprentissage",null,null,null,null,null,null,null,null,null,null,null,null,null,null,null,null,null,null,null,null,null,null,null,null,null,null,null,null,null,"TM - Cold Call (Phase 3)"]
[null,"Guide clair et facile à utiliser",null,null,null,null,null,null,null,null,null,null,null,null,null,null,null,null,null,null,null,null,null,null,null,null,null,null,null,null,"TM - Cold Call (Phase 4)"]
[null,"Exercices aident l'acquisition du savoir",null,null,null,null,null,null,null,null,null,null,null,null,null,null,null,null,null,null,null,null,null,null,null,null,null,null,null,null,"TMO Négociée - Ajout au contrat"]
[null,"Quantité des exercices"]
["Appréciation Globale"]
[null,"Correspond à mes attentes"]
[null,"Accomplissement des tâches"]
[null,"Recommande la formation"]
[]
[null,"Évaluation Niveau 2"]
[]
[null,"Évaluation Niveau 3"]

{"sheet":"ADMIN","index":1,"n_rows":68,"n_cols":34,"rows_kept":68,"cut":false,"hidden":false,"merged":[[0,0,0,5],[4,0,4,5]]}
[" INFORMATIONS GÉNÉRALES",null,null,null,null,null,null,null,"Voir Liste des Formations données","Voir Liste des Formateurs associés","Année & Mois d'une Formation et"]
[null,null,null,null,null,null,null,null," par Formateur / Type de Formation / Année","à une Formation / Type de Formation"," Type de Formation donnés par un Formateur",null,null,null,null,null,null,null,null,null,null,null,null,null,null,null,{"$f":"SAISIE!AA2","v":"Chatigny, Karine "},null,"Janvier","Initiale - TC","Cisco DTA & Loi C28 Phase 2",null,null,2014]
["Nombre de Formations données :",{"$f":"COUNTA(DATA!A:A)-1","v":44},null,null,null,null,null,null,null,null,null,null,null,null,null,null,null,null,null,null,null,null,null,null,null,null,{"$f":"SAISIE!AA3","v":"D'Auteuil, François"},null,"Février","Initiale - SPE","Extension Réseau Commerciale",null,null,2015]
[null,null,null,null,null,null,null,null,null,null,null,null,null,null,null,null,null,null,null,null,null,null,null,null,null,null,{"$f":"SAISIE!AA4","v":"Girard, Yvan-Daniel "},null,"Mars","P2","Extension Réseau Multi-Site",null,null,2016]
["INFORMATIONS PARTICULIÈRES",null,null,null,null,null,null,null,null,null,null,null,null,null,null,null,null,null,null,null,null,null,null,null,null,null,{"$f":"SAISIE!AA5","v":"Lafond, Geneviève"},null,"Avril","P3","L2VPN",null,null,2017]
[null,null,null,null,null,null,null,null,null,null,null,null,null,null,null,null,null,null,null,null,null,null,null,null,null,null,{"$f":"SAISIE!AA6","v":"Martin, François"},null,"Mai","E-Learning","LinkedIn - Le Vendeur Virtuel",null,null,2018]
["Formateur :",null,null,null,null,null,null,null,null,null,null,null,null,null,null,null,null,null,null,null,null,null,null,null,null,null,{"$f":"SAISIE!AA7","v":"Vanderwerff, Nathaniel"},null,"Juin",null,"Salesforce",null,null,2019]
["Formation :",null,null,null,null,null,null,null,null,null,null,null,null,null,null,null,null,null,null,null,null,null,null,null,null,null,{"$f":"SAISIE!AA8","v":"Berthiaume, André"},null,"Juillet",null,"Samsung S6",null,null,2020]
["Type de Formation :",null,null,null,null,null,null,null,null,null,null,null,null,null,null,null,null,null,null,null,null,null,null,null,null,null,{"$f":"SAISIE!AA9","v":"Autre Formateur 02"},null,"Août",null,"SPE - Internet"]
["Année :",null,null,null,null,null,null,null,null,null,null,null,null,null,null,null,null,null,null,null,null,null,null,null,null,null,{"$f":"SAISIE!AA10","v":"Autre Formateur 03"},null,"Septembre",null,"SPE - Politiques et Procédures"]
["Mois :",null,null,null,null,null,null,null,null,null,null,null,null,null,null,null,null,null,null,null,null,null,null,null,null,null,{"$f":"SAISIE!AA11","v":"Autre Formateur 04"},null,"Octobre",null,"SPE - Poursuites d'appels"]
[null,null,null,null,null,null,null,null,null,null,null,null,null,null,null,null,null,null,null,null,null,null,null,null,null,null,{"$f":"SAISIE!AA12","v":"Autre Formateur 05"},null,"Novembre",null,"SPE - Rétention & Processus d'escalade"]
[null,null,null,null,null,null,null,null,null,null,null,null,null,null,null,null,null,null,null,null,null,null,null,null,null,null,null,null,"Décembre",null,"SPE - Téléphonie"]
[null,null,null,null,null,null,null,null,null,null,null,null,null,null,null,null,null,null,null,null,null,null,null,null,null,null,null,null,null,null,"SPE - Télévision"]
["Nbre Total d'Apprenants",null,null,null,null,null,null,null,null,null,null,null,null,null,null,null,null,null,null,null,null,null,null,null,null,null,null,null,null,null,"SPE - TMO - Jour 1"]
["Nbre Total de Sondages Complétés",null,null,null,null,null,null,null,null,null,null,null,null,null,null,null,null,null,null,null,null,null,null,null,null,null,null,null,null,null,"SPE - TMO - Jour 2"]
["Répétition de la Formation :",null,null,null,null,null,null,null,null,null,null,null,null,null,null,null,null,null,null,null,null,null,null,null,null,null,null,null,null,null,"TC - Hébergement"]
[null,null,"Jamais","Parfois","Souvent","Toujours",null,null,null,null,null,null,null,null,null,null,null,null,null,null,null,null,null,null,null,null,null,null,null,null,"TC - Internet"]
["À propos de la Formation",null,null,null,null,null,null,null,null,null,null,null,null,null,null,null,null,null,null,null,null,null,null,null,null,null,null,null,null,null,"TC - Outils systèmes"]
[null,"Objectifs clairement énoncés",null,null,null,null,null,null,null,null,null,null,null,null,null,null,null,null,null,null,null,null,null,null,null,null,null,null,null,null,"TC - Service Affaire"]
[null,"Contenu clairement énoncé",null,null,null,null,null,null,null,null,null,null,null,null,null,null,null,null,null,null,null,null,null,null,null,null,null,null,null,null,"TC - Télédistribution"]
[null,"Rythme adéquat",null,null,null,null,null,null,null,null,null,null,null,null,null,null,null,null,null,null,null,null,null,null,null,null,null,null,null,null,"TC - TPC"]
[null,"Répartition théorie / pratique",null,null,null,null,null,null,null,null,null,null,null,null,null,null,null,null,null,null,null,null,null,null,null,null,null,null,null,null,"TM - Cold Call (Phase 2)"]
["À propos de l'Animation",null,null,null,null,null,null,null,null,null,null,null,null,null,null,null,null,null,null,null,null,null,null,null,null,null,null,null,null,null,"TM - Cold Call (Phase 3)"]
[null,"Maitrise du contenu",null,null,null,null,null,null,null,null,null,null,null,null,null,null,null,null,null,null,null,null,null,null,null,null,null,null,null,null,"TM - Cold Call (Phase 4)"]
[null,"Explications claires",null,null,null,null,null,null,null,null,null,null,null,null,null,null,null,null,null,null,null,null,null,null,null,null,null,null,null,null,"TMO Négociée - Ajout au contrat"]
[null,"Suscite l'intérêt"]
[null,"Consignes pour exercices"]
[null,"Validation de la compréhension"]
["Materiel et Activité d'Apprentissage"]
[null,"Guide clair et facile à utiliser"]
[null,"Exercices & acquisition du savoir"]
[null,"Quantité des exercices"]
["Appréciation Globale"]
[null,"Correspond à mes attentes"]
[null,"Accomplissement des tâches"]
[null,"Validation de la compréhension"]
[]
[null,"Évaluation Niveau 2",null,null,"Évaluation Niveau 3"]
[]
[]
[]
[" -  -  -  - "]
["Nbre Total d'Apprenants"]
["Nbre Total de Sondages Complétés"]
["Répétition de la Formation :"]
[null,null,"Jamais","Parfois","Souvent","Toujours"]
["À propos de la Formation"]
[null,"Objectifs clairement énoncés"]
[null,"Contenu clairement énoncé"]
[null,"Rythme adéquat"]
[null,"Répartition théorie / pratique"]
["À propos de l'Animation"]
[null,"Maitrise du contenu"]
[null,"Explications claires"]
[null,"Suscite l'intérêt"]
[null,"Consignes pour exercices"]
[null,"Validation de la compréhension"]
["Materiel et Activité d'Apprentissage"]
[null,"Guide clair et facile à utiliser"]
[null,"Exercices & acquisition du savoir"]
[null,"Quantité des exercices"]
["Appréciation Globale"]
[null,"Correspond à mes attentes"]
[null,"Accomplissement des tâches"]
[null,"Recommande la formation"]
[]
[null,"Évaluation Niveau 2",null,null,"Évaluation Niveau 3"]

{"sheet":"GRAPH","index":2,"n_rows":50,"n_cols":36,"rows_kept":50,"cut":false,"hidden":false,"merged":[[0,0,0,5],[0,12,0,17]]}
["OPTIONS GRAPHIQUES",null,null,null,null,null,null,null,null,null,null,null,"OPTIONS GRAPHIQUES"]
[null,null,null,null,null,null,null,"GENERER DATA",null,null,"CALL",null,null,null,null,null,null,null,null,null,null,null,null,null,null,null,{"$f":"SAISIE!AA2","v":"Chatigny, Karine "},null,"Janvier","Initiale - TC",{"$f":"SAISIE!AE2","v":"Cisco DTA & Loi C28 Phase 2"},null,null,2014,null,"Évaluation Niveau 2"]
["En :","Présenter :","En fonction de :","Et de :","Et de :","Classé par :",null,null,null,null,null,null,"En :","Présenter :","En fonction de :","Et de :","Et de :","Classé par :",null,null,null,null,null,null,null,null,{"$f":"SAISIE!AA3","v":"D'Auteuil, François"},null,"Février","Initiale - SPE",{"$f":"SAISIE!#REF!","v":{"$error":"#REF!"}},null,null,2015,null,"Évaluation Niveau 3"]
["(Année)","(Évaluation)","(Formateur)","(Type de formation)","(Formation)","Mois",null,"GENERER GRAPHIQUE",null,null,"CLEAR",null,"(Année)","(Évaluation)","(Formateur)","(Type de formation)","(Formation)","Mois",null,"GENERER GRAPHIQUE",null,null,null,null,null,null,{"$f":"SAISIE!AA4","v":"Girard, Yvan-Daniel "},null,"Mars","P2",{"$f":"SAISIE!#REF!","v":{"$error":"#REF!"}},null,null,2016]
[null,null,null,null,null,null,null,null,null,null,null,null,null,null,null,null,null,null,null,null,null,null,null,null,null,null,{"$f":"SAISIE!AA5","v":"Lafond, Geneviève"},null,"Avril","P3",{"$f":"SAISIE!#REF!","v":{"$error":"#REF!"}},null,null,2017]
[2014,"Évaluation Niveau 2","Chatigny, Karine ","E-Learning",null,null,null,null,null,null,null,null,null,null,null,null,null,null,null,"CLEAR",null,null,null,null,null,null,{"$f":"SAISIE!AA6","v":"Martin, François"},null,"Mai","E-Learning",{"$f":"SAISIE!#REF!","v":{"$error":"#REF!"}},null,null,2018]
[2014,"Évaluation Niveau 2","Vanderwerff, Nathaniel","E-Learning",null,null,null,null,null,null,null,null,null,null,null,null,null,null,null,null,null,null,null,null,null,null,{"$f":"SAISIE!AA7","v":"Vanderwerff, Nathaniel"},null,"Juin",null,{"$f":"SAISIE!#REF!","v":{"$error":"#REF!"}},null,null,2019]
[null,null,null,null,null,null,null,null,null,null,null,null,null,null,null,null,null,null,null,null,null,null,null,null,null,null,{"$f":"SAISIE!AA8","v":"Berthiaume, André"},null,"Juillet",null,{"$f":"SAISIE!#REF!","v":{"$error":"#REF!"}},null,null,2020]
[null,null,null,null,null,null,null,null,null,null,null,null,null,null,null,null,null,null,null,null,null,null,null,null,null,null,{"$f":"SAISIE!AA9","v":"Autre Formateur 02"},null,"Août",null,{"$f":"SAISIE!#REF!","v":{"$error":"#REF!"}}]
[null,null,null,null,null,null,"Résultats 1","Critère Année - Critère Évaluation - Critère Formateur - Critère Type de Formation - Critère Formation",null,null,null,null,null,null,null,null,null,null,"Résultats 1","Critère Année - Critère Évaluation - Critère Formateur - Critère Type de Formation - Critère Formation",null,null,null,null,null,null,{"$f":"SAISIE!AA10","v":"Autre Formateur 03"},null,"Septembre",null,{"$f":"SAISIE!#REF!","v":{"$error":"#REF!"}}]
[null,null,null,null,null,null,"Abscisse 1","Évaluation 1","Mois 1","Formateur 1","Type de formation 1","Formation 1",null,null,null,null,null,null,"Abscisse 1","Évaluation 1","Mois 1","Formateur 1","Type de formation 1","Formation 1",null,null,{"$f":"SAISIE!AA11","v":"Autre Formateur 04"},null,"Octobre",null,{"$f":"SAISIE!#REF!","v":{"$error":"#REF!"}}]
[null,null,null,null,null,null,"Abscisse 2","Évaluation 2","Mois 2","Formateur 2","Type de formation 2","Formation 2",null,null,null,null,null,null,"Abscisse 2","Évaluation 2","Mois 2","Formateur 2","Type de formation 2","Formation 2",null,null,{"$f":"SAISIE!AA12","v":"Autre Formateur 05"},null,"Novembre",null,{"$f":"SAISIE!#REF!","v":{"$error":"#REF!"}}]
[null,null,null,null,null,null,"Abscisse 3","Évaluation 3","Mois 3","Formateur 3","Type de formation 3","Formation 3",null,null,null,null,null,null,"Abscisse 3","Évaluation 3","Mois 3","Formateur 3","Type de formation 3","Formation 3",null,null,null,null,"Décembre",null,{"$f":"SAISIE!#REF!","v":{"$error":"#REF!"}}]
[null,null,null,null,null,null,"Abscisse 4","Évaluation 4","Mois 4","Formateur 4","Type de formation 4","Formation 4",null,null,null,null,null,null,"Abscisse 4","Évaluation 4","Mois 4","Formateur 4","Type de formation 4","Formation 4",null,null,null,null,null,null,{"$f":"SAISIE!#REF!","v":{"$error":"#REF!"}}]
[null,null,null,null,null,null,"Abscisse 5","Évaluation 5","Mois 5","Formateur 5","Type de formation 5","Formation 5",null,null,null,null,null,null,"Abscisse 5","Évaluation 5","Mois 5","Formateur 5","Type de formation 5","Formation 5",null,null,null,null,null,null,{"$f":"SAISIE!AE3","v":"Extension Réseau Commerciale"}]
[null,null,null,null,null,null,"Abscisse 6","Évaluation 6","Mois 6","Formateur 6","Type de formation 6","Formation 6",null,null,null,null,null,null,"Abscisse 6","Évaluation 6","Mois 6","Formateur 6","Type de formation 6","Formation 6",null,null,null,null,null,null,{"$f":"SAISIE!AE4","v":"Extension Réseau Multi-Site"}]
[null,null,null,null,null,null,"Abscisse 7","Évaluation 7","Mois 7","Formateur 7","Type de formation 7","Formation 7",null,null,null,null,null,null,"Abscisse 7","Évaluation 7","Mois 7","Formateur 7","Type de formation 7","Formation 7",null,null,null,null,null,null,{"$f":"SAISIE!AE5","v":"L2VPN"}]
[null,null,null,null,null,null,"Abscisse 8","Évaluation 8","Mois 8","Formateur 8","Type de formation 8","Formation 8",null,null,null,null,null,null,"Abscisse 8","Évaluation 8","Mois 8","Formateur 8","Type de formation 8","Formation 8",null,null,null,null,null,null,{"$f":"SAISIE!AE6","v":"LinkedIn - Le Vendeur Virtuel"}]
[null,null,null,null,null,null,"Abscisse 9","Évaluation 9","Mois 9","Formateur 9","Type de formation 9","Formation 9",null,null,null,null,null,null,"Abscisse 9","Évaluation 9","Mois 9","Formateur 9","Type de formation 9","Formation 9",null,null,null,null,null,null,{"$f":"SAISIE!AE7","v":"Salesforce"}]
[null,null,null,null,null,null,"Abscisse 10","Évaluation 10","Mois 10","Formateur 10","Type de formation 10","Formation 10",null,null,null,null,null,null,"Abscisse 10","Évaluation 10","Mois 10","Formateur 10","Type de formation 10","Formation 10",null,null,null,null,null,null,{"$f":"SAISIE!AE8","v":"Samsung S6"}]
[null,null,null,null,null,null,"Abscisse 11","Évaluation 11","Mois 11","Formateur 11","Type de formation 11","Formation 11",null,null,null,null,null,null,"Abscisse 11","Évaluation 11","Mois 11","Formateur 11","Type de formation 11","Formation 11",null,null,null,null,null,null,{"$f":"SAISIE!AE9","v":"SPE - Internet"}]
[null,null,null,null,null,null,"Abscisse 12","Évaluation 12","Mois 12","Formateur 12","Type de formation 12","Formation 12",null,null,null,null,null,null,"Abscisse 12","Évaluation 12","Mois 12","Formateur 12","Type de formation 12","Formation 12",null,null,null,null,null,null,{"$f":"SAISIE!AE10","v":"SPE - Politiques et Procédures"}]
[null,null,null,null,null,null,null,null,null,null,null,null,null,null,null,null,null,null,null,null,null,null,null,null,null,null,null,null,null,null,{"$f":"SAISIE!AE11","v":"SPE - Poursuites d'appels"}]
[null,null,null,null,null,null,"Résultats 2","Critère Année - Critère Évaluation - Critère Formateur - Critère Type de Formation - Critère Formation",null,null,null,null,null,null,null,null,null,null,"Résultats 2","Critère Année - Critère Évaluation - Critère Formateur - Critère Type de Formation - Critère Formation",null,null,null,null,null,null,null,null,null,null,{"$f":"SAISIE!AE12","v":"SPE - Rétention & Processus d'escalade"}]
[null,null,null,null,null,null,"Abscisse 1","Évaluation 1","Mois 1","Formateur 1","Type de formation 1","Formation 1",null,null,null,null,null,null,"Abscisse 1","Évaluation 1","Mois 1","Formateur 1","Type de formation 1","Formation 1",null,null,null,null,null,null,{"$f":"SAISIE!AE13","v":"SPE - Téléphonie"}]
[null,null,null,null,null,null,"Abscisse 2","Évaluation 2","Mois 2","Formateur 2","Type de formation 2","Formation 2",null,null,null,null,null,null,"Abscisse 2","Évaluation 2","Mois 2","Formateur 2","Type de formation 2","Formation 2",null,null,null,null,null,null,{"$f":"SAISIE!AE14","v":"SPE - Télévision"}]
[null,null,null,null,null,null,"Abscisse 3","Évaluation 3","Mois 3","Formateur 3","Type de formation 3","Formation 3",null,null,null,null,null,null,"Abscisse 3","Évaluation 3","Mois 3","Formateur 3","Type de formation 3","Formation 3",null,null,null,null,null,null,{"$f":"SAISIE!AE15","v":"SPE - TMO - Jour 1"}]
[null,null,null,null,null,null,"Abscisse 4","Évaluation 4","Mois 4","Formateur 4","Type de formation 4","Formation 4",null,null,null,null,null,null,"Abscisse 4","Évaluation 4","Mois 4","Formateur 4","Type de formation 4","Formation 4",null,null,null,null,null,null,{"$f":"SAISIE!AE16","v":"SPE - TMO - Jour 2"}]
[null,null,null,null,null,null,"Abscisse 5","Évaluation 5","Mois 5","Formateur 5","Type de formation 5","Formation 5",null,null,null,null,null,null,"Abscisse 5","Évaluation 5","Mois 5","Formateur 5","Type de formation 5","Formation 5",null,null,null,null,null,null,{"$f":"SAISIE!AE17","v":"TC - Hébergement"}]
[null,null,null,null,null,null,"Abscisse 6","Évaluation 6","Mois 6","Formateur 6","Type de formation 6","Formation 6",null,null,null,null,null,null,"Abscisse 6","Évaluation 6","Mois 6","Formateur 6","Type de formation 6","Formation 6",null,null,null,null,null,null,{"$f":"SAISIE!AE18","v":"TC - Internet"}]
[null,null,null,null,null,null,"Abscisse 7","Évaluation 7","Mois 7","Formateur 7","Type de formation 7","Formation 7",null,null,null,null,null,null,"Abscisse 7","Évaluation 7","Mois 7","Formateur 7","Type de formation 7","Formation 7",null,null,null,null,null,null,{"$f":"SAISIE!AE19","v":"TC - Outils systèmes"}]
[null,null,null,null,null,null,"Abscisse 8","Évaluation 8","Mois 8","Formateur 8","Type de formation 8","Formation 8",null,null,null,null,null,null,"Abscisse 8","Évaluation 8","Mois 8","Formateur 8","Type de formation 8","Formation 8",null,null,null,null,null,null,{"$f":"SAISIE!AE20","v":"TC - Service Affaire"}]
[null,null,null,null,null,null,"Abscisse 9","Évaluation 9","Mois 9","Formateur 9","Type de formation 9","Formation 9",null,null,null,null,null,null,"Abscisse 9","Évaluation 9","Mois 9","Formateur 9","Type de formation 9","Formation 9",null,null,null,null,null,null,{"$f":"SAISIE!AE33","v":0}]
[null,null,null,null,null,null,"Abscisse 10","Évaluation 10","Mois 10","Formateur 10","Type de formation 10","Formation 10",null,null,null,null,null,null,"Abscisse 10","Évaluation 10","Mois 10","Formateur 10","Type de formation 10","Formation 10",null,null,null,null,null,null,{"$f":"SAISIE!AE35","v":0}]
[null,null,null,null,null,null,"Abscisse 11","Évaluation 11","Mois 11","Formateur 11","Type de formation 11","Formation 11",null,null,null,null,null,null,"Abscisse 11","Évaluation 11","Mois 11","Formateur 11","Type de formation 11","Formation 11",null,null,null,null,null,null,{"$f":"SAISIE!AE36","v":0}]
[null,null,null,null,null,null,"Abscisse 12","Évaluation 12","Mois 12","Formateur 12","Type de formation 12","Formation 12",null,null,null,null,null,null,"Abscisse 12","Évaluation 12","Mois 12","Formateur 12","Type de formation 12","Formation 12",null,null,null,null,null,null,{"$f":"SAISIE!AE37","v":0}]
[null,null,null,null,null,null,null,null,null,null,null,null,null,null,null,null,null,null,null,null,null,null,null,null,null,null,null,null,null,null,{"$f":"SAISIE!AE38","v":0}]
[null,null,null,null,null,null,"Résultats 3","Critère Année - Critère Évaluation - Critère Formateur - Critère Type de Formation - Critère Formation",null,null,null,null,null,null,null,null,null,null,"Résultats 3","Critère Année - Critère Évaluation - Critère Formateur - Critère Type de Formation - Critère Formation"]
[null,null,null,null,null,null,"Abscisse 1","Évaluation 1","Mois 1","Formateur 1","Type de formation 1","Formation 1",null,null,null,null,null,null,"Abscisse 1","Évaluation 1","Mois 1","Formateur 1","Type de formation 1","Formation 1"]
[null,null,null,null,null,null,"Abscisse 2","Évaluation 2","Mois 2","Formateur 2","Type de formation 2","Formation 2",null,null,null,null,null,null,"Abscisse 2","Évaluation 2","Mois 2","Formateur 2","Type de formation 2","Formation 2"]
[null,null,null,null,null,null,"Abscisse 3","Évaluation 3","Mois 3","Formateur 3","Type de formation 3","Formation 3",null,null,null,null,null,null,"Abscisse 3","Évaluation 3","Mois 3","Formateur 3","Type de formation 3","Formation 3"]
[null,null,null,null,null,null,"Abscisse 4","Évaluation 4","Mois 4","Formateur 4","Type de formation 4","Formation 4",null,null,null,null,null,null,"Abscisse 4","Évaluation 4","Mois 4","Formateur 4","Type de formation 4","Formation 4"]
[null,null,null,null,null,null,"Abscisse 5","Évaluation 5","Mois 5","Formateur 5","Type de formation 5","Formation 5",null,null,null,null,null,null,"Abscisse 5","Évaluation 5","Mois 5","Formateur 5","Type de formation 5","Formation 5"]
[null,null,null,null,null,null,"Abscisse 6","Évaluation 6","Mois 6","Formateur 6","Type de formation 6","Formation 6",null,null,null,null,null,null,"Abscisse 6","Évaluation 6","Mois 6","Formateur 6","Type de formation 6","Formation 6"]
[null,null,null,null,null,null,"Abscisse 7","Évaluation 7","Mois 7","Formateur 7","Type de formation 7","Formation 7",null,null,null,null,null,null,"Abscisse 7","Évaluation 7","Mois 7","Formateur 7","Type de formation 7","Formation 7"]
[null,null,null,null,null,null,"Abscisse 8","Évaluation 8","Mois 8","Formateur 8","Type de formation 8","Formation 8",null,null,null,null,null,null,"Abscisse 8","Évaluation 8","Mois 8","Formateur 8","Type de formation 8","Formation 8"]
[null,null,null,null,null,null,"Abscisse 9","Évaluation 9","Mois 9","Formateur 9","Type de formation 9","Formation 9",null,null,null,null,null,null,"Abscisse 9","Évaluation 9","Mois 9","Formateur 9","Type de formation 9","Formation 9"]
[null,null,null,null,null,null,"Abscisse 10","Évaluation 10","Mois 10","Formateur 10","Type de formation 10","Formation 10",null,null,null,null,null,null,"Abscisse 10","Évaluation 10","Mois 10","Formateur 10","Type de formation 10","Formation 10"]
[null,null,null,null,null,null,"Abscisse 11","Évaluation 11","Mois 11","Formateur 11","Type de formation 11","Formation 11",null,null,null,null,null,null,"Abscisse 11","Évaluation 11","Mois 11","Formateur 11","Type de formation 11","Formation 11"]
[null,null,null,null,null,null,"Abscisse 12","Évaluation 12","Mois 12","Formateur 12","Type de formation 12","Formation 12",null,null,null,null,null,null,"Abscisse 12","Évaluation 12","Mois 12","Formateur 12","Type de formation 12","Formation 12"]

{"sheet":"DATA","index":3,"n_rows":45,"n_cols":76,"rows_kept":45,"cut":false,"hidden":false,"merged":[]}
["Formateur","Formation","Type de Formation","Annee","Mois","Nbre Total d'apprenants","Nbre Total de Sondages complétés","Répétitions de la formation","Objectifs clairement énoncés - Jamais","Objectifs clairement énoncés - Parfois","Objectifs clairement énoncés - Souvent","Objectifs clairement énoncés - Toujours","Contenu clairement énoncé - Jamais","Contenu clairement énoncé - Parfois","Contenu clairement énoncé - Souvent","Contenu clairement énoncé - Toujours","Rythme adéquat - Jamais","Rythme adéquat - Parfois","Rythme adéquat - Souvent","Rythme adéquat - Toujours","Répartition théorie / pratique - Jamais","Répartition théorie / pratique - Parfois","Répartition théorie / pratique - Souvent","Répartition théorie / pratique - Toujours","Maitrise du contenu - Jamais","Maitrise du contenu - Parfois","Maitrise du contenu - Souvent","Maitrise du contenu - Toujours","Explications claires - Jamais","Explications claires - Parfois","Explications claires - Souvent","Explications claires - Toujours","Suscite l'intérêt - Jamais","Suscite l'intérêt - Parfois","Suscite l'intérêt - Souvent","Suscite l'intérêt - Toujours","Consignes pour exercices - Jamais","Consignes pour exercices - Parfois","Consignes pour exercices - Souvent","Consignes pour exercices - Toujours","Validation de la compréhension - Jamais","Validation de la compréhension - Parfois","Validation de la compréhension - Souvent","Validation de la compréhension - Toujours","Guide clair et facile à utiliser - Jamais","Guide clair et facile à utiliser - Parfois","Guide clair et facile à utiliser - Souvent","Guide clair et facile à utiliser - Toujours","Exercices aident l'acquisition du savoir - Jamais","Exercices aident l'acquisition du savoir - Parfois","Exercices aident l'acquisition du savoir - Souvent","Exercices aident l'acquisition du savoir - Toujours","Quantité des exercices - Jamais","Quantité des exercices - Parfois","Quantité des exercices - Souvent","Quantité des exercices - Toujours","Correspond à mes attentes - Jamais","Correspond à mes attentes - Parfois","Correspond à mes attentes - Souvent","Correspond à mes attentes - Toujours","Accomplissement des tâches - Jamais","Accomplissement des tâches - Parfois","Accomplissement des tâches - Souvent","Accomplissement des tâches - Toujours","Recommande la formation - Jamais","Recommande la formation - Parfois","Recommande la formation - Souvent","Recommande la formation - Toujours","Evaluation niveau 2","Evaluation niveau 3"]
["Girard, Yvan-Daniel ","SPE - Internet","Initiale - SPE",2015,"Février",11,6,1,null,null,33.33,66.67,null,null,16.670000000000002,83.33,null,null,66.67,33.33,null,null,16.670000000000002,83.33,null,null,33.33,66.67,null,null,null,100,null,null,50,50,null,null,33.33,66.67,null,null,33.33,66.67,null,null,50,50,null,null,16.670000000000002,83.33,null,null,50,50,null,null,33.33,66.67,null,null,16.670000000000002,83.33,null,null,33.33,66.67,68.760000000000005,null,null,null,null,null,null,"Girard, Yvan-Daniel"]
["D'Auteuil, François","SPE - Télévision","Initiale - SPE",2015,"Février",9,9,1,null,null,11.11,88.89,null,null,22.22,77.78,null,null,33.33,66.67,null,null,22.22,77.78,null,null,11.11,88.89,null,null,11.11,88.89,null,null,22.22,77.78,null,null,null,100,null,null,null,100,null,null,22.22,77.78,null,null,22.22,77.78,null,null,11.11,88.89,null,null,null,100,null,null,11.11,88.89,null,null,11.11,88.89,79.400000000000006,null,null,null,null,null,null,"D'Auteuil, François"]
["Girard, Yvan-Daniel ","SPE - Rétention & Processus d'escalade","Initiale - SPE",2015,"Février",11,7,1,null,null,14.29,85.71,null,null,14.29,85.71,null,null,28.57,71.430000000000007,null,null,28.57,71.430000000000007,null,null,14.29,85.71,null,null,null,100,null,null,28.57,71.430000000000007,null,null,28.57,71.430000000000007,null,null,14.29,85.71,null,null,28.57,71.430000000000007,null,null,28.57,57.14,null,null,42.86,57.14,null,null,28.57,71.430000000000007,null,null,28.57,71.430000000000007,null,null,28.57,71.430000000000007,80.86,null,null,null,null,null,null,"Vanderwerff, Nathaniel"]
["Vanderwerff, Nathaniel","SPE - TMO - Jour 2","Initiale - SPE",2015,"Mars",11,11,1,null,null,9.09,90.91,null,null,18.18,81.819999999999993,null,null,9.09,90.91,null,null,27.27,72.73,null,null,null,100,null,null,null,100,null,null,18.18,81.22,null,null,null,100,null,null,null,100,null,null,9.09,90.91,null,null,27.27,72.73,null,null,18.18,81.819999999999993,null,null,9.09,90.91,null,null,18.18,81.819999999999993,null,null,9.09,90.91,81.09,null,null,null,null,null,null,"Chatigny, Karine"]
["D'Auteuil, François","SPE - Téléphonie","Initiale - SPE",2015,"Février",11,9,1,null,null,11.1,88.89,null,null,22.2,77.78,null,null,33.299999999999997,66.67,null,null,33.299999999999997,66.67,null,null,null,100,null,null,22.2,77.78,null,null,11.1,88.89,null,null,null,100,null,null,null,100,null,null,44.4,55.56,null,null,22.22,77.78,null,null,55.56,44.44,null,null,11.1,88.89,null,null,11.1,88.89,null,null,11.1,88.89,82.82,null,null,null,null,null,null,"Berthiaume, André"]
["Girard, Yvan-Daniel ","Convertisseur numérique analogique et Loi C-28 \n","P2",2015,"Janvier",106,102,19,null,null,6.86,93.14,null,null,10.78,89.22,0.98,null,10.78,88.24,0.98,1.96,11.76,85.29,null,null,6.86,93.14,null,null,7.84,92.16,null,null,9.8000000000000007,90.2,null,null,6.86,93.14,null,null,6.86,93.14,null,0.98,17.649999999999999,81.37,null,0.92,11.76,84.31,0.98,2.94,13.73,82.35,0.98,0.98,13.73,84.31,null,2.94,12.75,84.31,0.98,0.98,11.76,86.27,85]
["Chatigny, Karine","TMO Négociée - Ajout au contrat","P2",2015,"Janvier",4,4,1,null,null,null,100,null,null,null,100,null,null,null,100,null,null,null,100,null,null,null,100,null,null,null,100,null,null,null,100,null,null,null,100,null,null,null,100,null,null,null,100,null,null,null,100,null,null,null,100,null,null,33.33,66.67,null,null,33.33,66.67,null,null,33.33,66.67]
["D'Auteuil, François","SPE - Politiques et Procédures","Initiale - SPE",2015,"Février",13,13,1,null,null,15.38,84.62,null,null,7.69,92.31,null,null,38.46,61.54,null,null,30.77,69.23,null,null,7.69,92.31,null,null,23.08,76.92,null,null,15.38,84.62,null,null,15.38,84.62,null,null,7.69,92.31,null,7.69,30.77,61.54,null,null,30.77,69.23,null,null,46.15,53.85,null,null,23.08,76.92,null,null,15.38,84.62,null,null,23.08,76.92]
["D'Auteuil, François","SPE - Poursuites d'appels","Initiale - SPE",2015,"Février",11,9,1,null,null,22.22,77.78,null,null,22.22,77.78,null,null,33.33,66.67,null,null,null,100,null,null,null,100,null,null,11.11,88.89,null,null,11.11,88.89,null,null,11.11,88.89,null,null,null,100,null,null,33.33,66.67,null,null,33.33,66.67,null,null,22.22,77.78,null,null,null,100,null,null,null,100,null,null,null,100]
["Vanderwerff, Nathaniel","TM - Cold Call (Phase 2)","P3",2015,"Février",5,5,2,null,null,null,100,null,null,null,100,null,null,null,100,null,null,null,100,null,null,null,100,null,null,null,100,null,null,null,100,null,null,null,100,null,null,null,100,null,null,null,100,null,null,null,100,null,null,null,100,null,null,20,80,null,null,20,80,null,null,20,80,85,80]
["Vanderwerff, Nathaniel","TM - Cold Call (Phase 3)","P3",2015,"Février",4,4,1,null,null,null,100,null,null,null,100,null,null,null,100,null,null,null,100,null,null,null,100,null,null,null,100,null,null,null,100,null,null,null,100,null,null,null,100,null,null,null,100,null,null,null,100,null,null,null,100,null,null,null,100,null,null,null,100,null,null,null,100,85,90]
["Vanderwerff, Nathaniel","TM - Cold Call (Phase 4)","P3",2015,"Mars",2,2,1,null,null,null,100,null,null,null,100,null,null,null,100,null,null,null,100,null,null,null,100,null,null,null,100,null,null,null,100,null,null,null,100,null,null,null,100,null,null,null,100,null,null,null,100,null,null,null,100,null,null,null,100,null,null,null,100,null,null,null,100,85,90]
["Chatigny, Karine ","Extension Réseau Commerciale","P3",2015,"Mars",3,3,2,null,null,null,100,null,null,null,100,null,null,100,null,null,33.33,33.33,33.33,null,null,33.33,66.67,null,null,33.33,66.67,null,null,33.33,66.67,null,null,null,100,null,null,null,100,null,null,33.33,66.67,null,null,null,100,null,null,33.33,66.67,null,null,33.33,66.67,null,null,null,100,null,null,null,100,85]
["Vanderwerff, Nathaniel","Extension Réseau Multi-Site","P2",2015,"Mars",3,3,2,null,null,null,100,null,null,null,100,null,null,null,100,null,null,null,100,null,null,null,100,null,null,null,100,null,null,null,100,null,null,null,100,null,null,null,100,null,null,null,100,null,null,null,100,null,null,null,100,null,null,null,100,null,null,null,100,null,null,null,100,75]
["Chatigny, Karine ","TC - Outils systèmes","Initiale - TC",2015,"Mars",2,2,1,null,null,null,100,null,null,null,100,null,null,null,100,null,null,null,100,null,null,null,100,null,null,null,100,null,null,null,100,null,null,null,100,null,null,null,100,null,null,null,100,null,null,null,100,null,null,null,100,null,null,null,100,null,null,null,100,null,null,null,100]
["Vanderwerff, Nathaniel","L2VPN","E-Learning",2015,"Mars",9,9,4,null,null,null,100,null,null,null,100,null,null,null,100,null,null,null,100,null,null,null,100,null,null,null,100,null,null,null,100,null,null,null,100,null,null,null,100,null,null,null,100,null,null,null,100,null,null,null,100,null,null,80,20,null,null,null,100,null,null,null,100]
["Vanderwerff, Nathaniel","SPE - TMO - Jour 1","Initiale - SPE",2015,"Mars",11,11,1,null,null,9.09,90.91,null,null,18.18,81.819999999999993,null,null,null,100,null,null,27.27,72.73,null,null,null,100,null,null,null,100,null,null,18.18,81.819999999999993,null,null,null,100,null,null,9.09,90.91,null,null,18.18,81.819999999999993,null,null,18.18,81.819999999999993,null,null,27.27,72.73,null,null,18.18,81.819999999999993,null,null,18.18,81.819999999999993,null,null,9.09,90.91,81]
["Vanderwerff, Nathaniel","TC - Service Affaire","Initiale - TC",2015,"Février",13,13,1,null,null,16.670000000000002,83.33,null,5.56,5.56,88.89,null,null,11.11,88.89,null,5.56,11.11,83.33,null,null,null,100,null,null,5.56,94.4,null,null,16.670000000000002,83.33,null,null,16.670000000000002,83.33,null,null,5.56,94.44,null,null,16.670000000000002,83.33,null,null,16.670000000000002,83.33,null,null,11.11,88.89,null,null,5.56,94.44,null,null,5.56,94.44,null,null,5.56,94.44,73]
["Vanderwerff, Nathaniel","TC - Service Affaire","Initiale - TC",2015,"Avril",8,8,1,null,null,12.5,87.5,null,null,25,75,null,null,25,75,null,null,50,50,null,null,25,75,null,null,25,75,null,12.5,12.5,75,null,null,12.5,87.5,null,null,37.5,62.5,null,null,37.5,62.5,null,null,12.5,87.5,null,12.5,12.5,75,null,null,37.5,62.5,null,null,25,75,null,null,25,75,90]
["Vanderwerff, Nathaniel","TC - Hébergement","Initiale - TC",2015,"Février",13,8,1,null,null,null,100,null,null,null,100,null,null,37.5,62.5,null,null,25,75,null,null,null,100,null,null,12.5,87.5,null,null,25,75,null,null,12.5,87.5,null,null,null,100,null,null,25,75,null,null,null,100,null,null,37.5,62.5,null,null,25,75,null,null,12.5,87.5,null,null,12.5,87.5,73]
["Vanderwerff, Nathaniel","TC - Hébergement","Initiale - TC",2015,"Avril",7,7,1,null,null,null,100,null,null,14.29,85.71,null,null,28.57,71.430000000000007,null,null,28.57,71.430000000000007,null,null,14.29,85.71,null,null,42.86,57.14,null,null,42.86,57.14,null,null,14.29,85.71,null,null,28.57,71.430000000000007,null,null,28.57,71.430000000000007,null,14.29,14.29,71.430000000000007,null,28.57,null,71.430000000000007,null,null,42.86,57.14,null,null,42.86,57.14,null,null,42.86,57.14,89]
["Vanderwerff, Nathaniel","TC - Internet","Initiale - TC",2015,"Février",13,13,1,null,null,null,100,null,null,23.08,76.92,null,null,15.38,84.62,null,null,30.77,69.23,null,null,null,100,null,null,15.38,84.62,null,null,15.38,84.62,null,null,15.38,84.62,null,null,null,100,null,null,7.69,92.31,null,null,7.69,92.31,null,null,23.08,76.92,null,null,15.38,84.62,null,null,null,100,null,null,7.69,92.31,73]
["Vanderwerff, Nathaniel","TC - Internet","Initiale - TC",2015,"Avril",7,7,1,null,null,28.57,71.430000000000007,null,null,28.57,71.430000000000007,null,null,42.86,57.14,null,null,28.57,71.430000000000007,null,null,null,100,null,null,14.29,85.71,null,null,14.29,85.71,null,null,null,100,null,null,14.29,85.71,null,null,28.57,71.430000000000007,null,null,28.57,71.430000000000007,null,14.29,14.29,71.430000000000007,null,null,28.57,71.430000000000007,null,null,28.57,71.430000000000007,null,null,28.57,71.430000000000007,82]
["Vanderwerff, Nathaniel","LinkedIn - Le Vendeur Virtuel","Initiale - TC",2015,"Avril",5,5,1,null,null,20,80,null,null,20,80,null,null,null,100,null,null,20,80,null,null,null,100,null,null,null,100,null,null,20,80,null,null,null,100,null,null,null,100,null,null,20,80,null,null,20,80,20,null,null,80,null,null,20,80,null,null,null,100,null,null,20,80,90,70]
["Chatigny, Karine ","TC - TPC","Initiale - TC",2015,"Février",13,13,1,null,null,7.14,92.86,null,null,14.29,85.71,null,null,14.29,85.71,null,null,14.29,85.71,null,null,21.4,78.569999999999993,null,null,7.14,92.86,null,null,7.14,92.86,null,null,14.29,85.71,null,null,null,100,null,null,28.57,71.430000000000007,null,null,7.14,92.86,null,null,28.57,71.430000000000007,null,null,14.29,85.71,null,null,7.14,92.86,null,null,7.14,92.86,73]
["Chatigny, Karine ","TC - TPC","Initiale - TC",2015,"Avril",7,6,1,null,null,null,100,null,null,null,100,16.670000000000002,null,16.670000000000002,66.67,16.670000000000002,null,null,83.33,null,null,16.670000000000002,83.33,null,null,33.33,66.67,null,null,16.670000000000002,83.33,null,null,16.670000000000002,83.33,null,null,16.670000000000002,83.33,null,16.670000000000002,16.670000000000002,66.67,null,16.670000000000002,16.670000000000002,66.67,null,16.670000000000002,16.670000000000002,66.67,null,null,33.33,66.67,null,null,33.33,66.67,null,null,33.33,66.67,79]
["Chatigny, Karine","TC - Télédistribution","Initiale - TC",2015,"Février",13,10,1,null,null,10,90,null,null,10,90,null,null,10,90,null,null,20,80,null,null,10,90,null,null,10,90,null,null,20,80,null,null,10,90,null,null,10,90,null,null,20,80,null,null,10,90,null,null,20,80,null,null,10,90,null,null,10,90,null,null,10,90,73]
["Chatigny, Karine ","TC - Télédistribution","Initiale - TC",2015,"Avril",7,7,1,null,null,37.5,62.5,null,null,37.5,62.5,null,null,50,50,null,null,50,50,null,null,50,50,null,null,50,50,null,null,50,50,null,null,50,50,null,null,50,50,null,null,12.5,87.5,null,null,12.5,87.5,null,null,12.5,87.5,null,null,12.5,87.5,null,null,12.5,87.5,null,null,12.5,87.5,89]
["Vanderwerff, Nathaniel","Salesforce","Initiale - TC",2015,"Avril",6,6,1,null,null,null,100,null,null,null,100,null,null,null,100,null,null,null,100,null,null,null,100,null,null,null,100,null,null,null,100,null,null,null,100,null,null,null,100,null,null,null,100,null,null,null,100,null,null,null,100,null,null,null,100,null,null,33.33,66.67,null,null,null,100]
["Vanderwerff, Nathaniel","Samsung S6","E-Learning",2015,"Mars",2,2,2,null,null,null,null,null,null,50,50,null,null,null,null,null,null,null,null,null,null,null,null,null,null,50,50,null,null,50,50,null,null,null,null,null,null,null,null,null,null,null,null,null,null,null,null,null,null,null,null,null,null,50,50,null,null,50,50,null,50,null,50]
["Vanderwerff, Nathaniel","TC - Fibre","Initiale - TC",2015,"Mai",3,2,1,null,null,33.33,66.67,null,null,66.67,33.33,null,null,33.33,66.67,null,33.33,null,66.67,null,null,33.33,66.67,null,null,33.33,66.67,null,null,33.33,66.67,null,null,33.33,66.67,null,null,null,100,null,null,66.67,33.33,null,null,33.33,66.67,null,33.33,33.33,33.33,null,33.33,null,66.67,null,33.33,33.33,33.33,null,null,66.67,33.33,75]
["Berthiaume, André","Les Systèmes d'exploitation TMO","E-Learning",2015,"Mai",27,27,27,null,null,null,null,null,3.7,22.22,74.069999999999993,null,null,null,null,null,null,null,null,null,null,null,null,null,3.7,22.22,74.069999999999993,null,18.52,22.22,59.26,null,null,null,null,null,null,null,null,null,null,null,null,null,null,null,null,null,null,null,null,null,3.7,33.299999999999997,62.96,null,7.41,37.04,55.56,null,7.41,37.04,55.56]
["Berthiaume, André","Les Appareils TMO","E-Learning",2015,"Mai",40,40,40,null,null,null,null,null,null,20,80,null,null,null,null,null,null,null,null,null,null,null,null,null,2.5,17.5,80,2.5,25,20,52.5,null,null,null,null,null,null,null,null,null,null,null,null,null,null,null,null,null,null,null,null,2.5,5,32.5,60,2.5,10,27.5,60,7.5,5,32.5,55]
["Berthiaume, André","Limites de Support TMO","E-Learning",2015,"Mai",70,70,70,null,null,null,null,null,5.71,20,74.290000000000006,null,null,null,null,null,null,null,null,null,null,null,null,1.43,5.71,25.71,67.14,5.71,20,34.29,40,null,null,null,null,null,null,null,null,null,null,null,null,null,null,null,null,null,null,null,null,1.45,8.6999999999999993,50.72,39.130000000000003,1.45,14.49,43.48,40.58,5.8,7.25,43.48,43.48]
["Chatigny, Karine ","Optimisation du Géopo (DDC15522)","E-Learning",2015,"Février"]
["Chatigny, Karine ","TC - Outils systèmes","Initiale - TC",2015,"Février",13,null,1,null,null,null,null,null,null,null,null,null,null,null,null,null,null,null,null,null,null,null,null,null,null,null,null,null,null,null,null,null,null,null,null,null,null,null,null,null,null,null,null,null,null,null,null,null,null,null,null,null,null,null,null,null,null,null,null,null,null,null,null,73]
["Chatigny, Karine","Les Verticaux - Clinique Dentaires","E-Learning",2015,"Mai"]
["Chatigny, Karine ","Les Verticaux - Services Juridiques","E-Learning",2015,"Mai",6,6,6,null,null,null,null,null,null,null,100,null,null,null,null,null,null,null,null,null,null,null,null,null,null,null,100,null,null,null,100,null,null,null,null,null,null,null,null,null,null,null,null,null,null,null,null,null,null,null,null,null,null,null,100,null,null,null,100,null,null,null,100,80]
["Vanderwerff, Nathaniel","TC - Outils systèmes","Initiale - TC",2015,"Avril",5,5,1,null,null,20,80,null,null,40,60,null,null,20,80,null,20,20,60,null,null,null,100,null,null,20,80,null,null,20,80,null,null,null,100,null,null,null,100,null,null,20,80,null,null,null,100,null,null,20,80,null,20,null,80,null,null,20,80,null,null,40,60,67]
["Vanderwerff, Nathaniel","TC - Service Affaire","Initiale - TC",2015,"Avril",5,5,1,null,null,null,100,null,null,null,100,null,null,40,60,null,null,null,100,null,null,null,100,null,null,20,80,null,null,20,80,null,null,null,100,null,null,20,80,null,null,20,80,null,20,null,80,null,20,20,60,null,null,40,60,null,null,40,60,null,null,60,40,90]
["Vanderwerff, Nathaniel","TC - Internet","Initiale - TC",2015,"Avril",5,5,1,null,null,null,100,null,null,null,100,null,null,20,80,null,null,20,80,null,null,null,100,null,null,20,80,null,null,20,80,null,null,null,100,null,null,null,100,null,20,null,80,null,null,20,80,null,null,40,60,null,null,40,60,null,null,20,80,null,null,40,60,82]
["Vanderwerff, Nathaniel","TC - Hébergement","Initiale - TC",2015,"Avril",5,5,1,null,20,null,80,null,null,20,80,null,null,20,80,null,20,null,80,null,null,null,100,null,null,null,100,null,null,null,100,null,null,null,100,null,null,null,100,null,20,20,60,null,null,20,80,null,null,40,60,null,null,40,60,null,null,40,60,null,null,40,60,89]
["Vanderwerff, Nathaniel","TC - TPC","Initiale - TC",2015,"Avril",5,5,1,null,null,20,80,null,null,null,100,null,null,20,80,null,null,20,80,null,null,null,100,null,null,null,100,null,null,null,100,null,null,20,80,null,null,20,80,null,null,null,100,null,null,20,80,null,null,20,80,null,null,40,60,null,null,20,80,null,null,40,60,81]
["Vanderwerff, Nathaniel","TC - Télédistribution","Initiale - TC",2015,"Avril",5,5,1,null,null,null,100,null,null,20,80,null,null,null,100,null,null,20,80,null,null,null,100,null,null,20,80,null,null,null,100,null,null,20,80,null,null,null,100,null,null,null,100,null,null,20,80,null,null,null,100,null,null,null,100,null,null,null,100,null,null,null,100,89]